Cogmind - Beta 13 @@@ ROGUE MODE // 2024.02.29 @ 07:44:19 Player: Takagiro Result: Destroyed by D-53 Grenadier with Mini Grenade Launcher Performance ------------- Evolutions (0) 0 Regions Visited (2) 400 Robots Destroyed (7) 35 Value Destroyed (107) 107 Prototype IDs (0) 0 Alien Tech Used (0) 0 Bonus (0) 0 TOTAL SCORE: 542 Bonus ------- None Cogmind --------- Core Integrity 0/250 Matter 300/300 Energy 125/125 System Corruption 0% Temperature Cool (0) Movement Core (100) Ox1 Location -10/Mines Parts ------- > --- POWER (1) -------- Light Ion Engine > --- PROPULSION (2) --- (None) > --- UTILITY (2) ------ (None) > --- WEAPON (2) ------- Small Laser Light Assault Rifle > --- INVENTORY (5) ---- Light Ion Engine Light Ion Engine Light Assault Rifle Grenade Launcher Peak State ------------ > --- POWER ------------ Light Ion Engine > --- PROPULSION ------- Aluminum Leg > --- UTILITY ---------- Improved Heat Sink > --- WEAPON ----------- Small Laser Small Laser > --- INVENTORY -------- Grenade Launcher [Rating: 7] Favorites ----------- Power Light Ion Engine Engine Light Ion Engine Propulsion Aluminum Leg Leg Aluminum Leg Utility Improved Heat Sink Device Improved Heat Sink Weapon Small Laser Energy Gun Small Laser Ballistic Gun Assault Rifle Build | -11 -10 -10 ------- Run | Yrd Mat Min Slots Evolved . | . . . Power . | . . . Propulsion . | . . . Utility . | . . . Weapon . | . . . Parts Attached 8 | 4 2 2 Power 2 | 1 . 1 Engine 2 | 1 . 1 Core . | . . . Reactor . | . . . Propulsion 1 | 1 . . Treads . | . . . Leg 1 | 1 . . Wheel . | . . . Hover . | . . . Flight . | . . . Utility 1 | . 1 . Device 1 | . 1 . Storage . | . . . Processor . | . . . Hackware . | . . . Protection . | . . . Artifact . | . . . Weapon 4 | 2 1 1 Energy Gun 2 | 1 1 . Energy Cannon . | . . . Ballistic Gun 2 | 1 . 1 Ballistic Cannon . | . . . Launcher . | . . . Special Weapon . | . . . Impact Weapon . | . . . Slashing Weapon . | . . . Piercing Weapon . | . . . Special Melee Weapon . | . . . Unidentified Prototypes . | . . . Parts Lost 3 | . . 3 Power . | . . . Propulsion 1 | . . 1 Utility 1 | . . 1 Weapon 1 | . . 1 Highest Loss Streak 2 | . . 2 To Critical Strikes . | . . . Average Slot Usage (%) 65 | . 61 69 Engine 14 | . 14 14 Leg 14 | . 14 14 Device 9 | . 4 14 Energy Gun 21 | . 22 21 Ballistic Gun 5 | . 5 5 Naked Turns . | . . . Heaviest Build 6 | 6 6 6 Greatest Support 10 | 10 10 10 Greatest Overweight (x) . | . . . Average Overweight (x) . | . . . Largest Inventory Capacity 5 | 5 5 5 Average Capacity 5 | 5 5 5 Most Carried 5 | 3 3 5 Average Carried 1 | . . 3 Final Capacity 5 | 5 5 5 Final Carried 4 | . 2 4 Class Distribution -------------------- 100% | Mutant Dominant Class ---------------- Mutant | -10/Materials Mutant | -10/Mines Resources | -11 -10 -10 ----------- Run | Yrd Mat Min Matter Collected 282 | 187 53 42 Remotely . | . . . Salvage Created 148 | . 53 95 Parts 13 | . 2 11 Haulers Intercepted . | . . . Recyclers Shooed 1 | . 1 . Parts Field Recycled . | . . . Retrieved Matter . | . . . Parts Self-Destructed . | . . . Prevented . | . . . Kills | -11 -10 -10 ------- Run | Yrd Mat Min Combat Hostiles Destroyed 7 | . 1 6 Guns 6 | . . 6 Classes Destroyed 2 | . 1 1 Swarmer 6 | . . 6 Grunt 1 | . 1 . Best Kill Streak 3 | . 1 3 Combat Bots Only 3 | . 1 3 Max Kills in Single Turn 1 | . 1 1 Gunslinging . | . . . Exploded . | . . . Melee . | . . . Uniques/NPCs Destroyed . | . . . Combat | -11 -10 -10 -------- Run | Yrd Mat Min Hostile Shots Fired 49 | . 10 39 Missed 9 | . 2 7 Damage Taken 529 | . 125 404 Core 250 | . 94 156 Absorbed by Shields . | . . . Core Remaining (%) 100 | 100 . . Volleys Fired 26 | . 10 16 Largest 2 | . 2 2 Hottest 80 | . 80 80 Shots Fired 46 | . 20 26 Gun 46 | . 20 26 Cannon . | . . . Launcher . | . . . Special . | . . . Kinetic 2 | . 1 1 Thermal 44 | . 19 25 Explosive . | . . . Electromagnetic . | . . . Robot Hit Streak 13 | . 11 13 Robot Miss Streak 12 | . 4 12 Penetration Max . | . . . Secondary Targets . | . . . Shots Hit Robots 22 | . 13 9 Core Hits 10 | . 3 7 Critical Kills . | . . . Critical Parts Destroyed . | . . . Critical Strikes . | . . . Melee Attacks . | . . . Impact . | . . . Slashing . | . . . Piercing . | . . . Sneak Attacks . | . . . Combat Hostiles . | . . . Follow-up Attacks . | . . . Damage Inflicted 267 | . 170 97 Guns 267 | . 170 97 Cannons . | . . . Explosions . | . . . Melee . | . . . Ramming . | . . . Kinetic 20 | . 11 9 Thermal 247 | . 159 88 Explosive . | . . . Electromagnetic . | . . . Impact . | . . . Slashing . | . . . Piercing . | . . . Highest Corruption . | . . . Average Corruption . | . . . Corruption Purged . | . . . Corruption Blocked . | . . . Overload Shots . | . . . Overflow Damage . | . . . Projectiles . | . . . Explosions . | . . . Melee . | . . . Knockbacks . | . . . Impact . | . . . Kinetic . | . . . Secondary . | . . . Self-Inflicted Damage . | . . . Shots . | . . . Rammed . | . . . Targets Rammed . | . . . Kicked . | . . . Crushed . | . . . Highest Temperature 160 | . 160 . Average Temperature 82 | . 82 . Received Heat Transfer 72 | . 72 . Siege Activations . | . . . Robots Corrupted . | . . . Combat Hostiles . | . . . Parts Fried . | . . . Impact Corruptions . | . . . Robots Melted 1 | . 1 . Combat Hostiles 1 | . 1 . Parts Melted 1 | . 1 . Heat Transferred 550 | . 350 200 Parts Sabotaged . | . . . Parts Stolen . | . . . Parts Stripped . | . . . Power Chain Reactions . | . . . Alert | -11 -10 -10 ------- Run | Yrd Mat Min Peak Influence 243 | . 60 243 Initial 23 | . . 23 Average 74 | . 22 143 Maximum Alert Level 1 | . . 1 Low Security (%) 79 | 100 100 53 Level 1 20 | . . 46 Level 2 . | . . . Level 3 . | . . . Level 4 . | . . . Level 5 . | . . . High Security . | . . . Max Security . | . . . Squads Dispatched 1 | . 1 . Investigation . | . . . Extermination . | . . . Reinforcement 1 | . 1 . Assault . | . . . Garrison . | . . . Intercept . | . . . Searches Triggered . | . . . Construction Impeded . | . . . Haulers Reinforced . | . . . Active Scanning Responses . | . . . Cargo Convoy Interrupts . | . . . Stealth | -11 -10 -10 --------- Run | Yrd Mat Min Distress Signals 1 | . 1 . Communications Jammed . | . . . Distress Signals . | . . . Times Spotted 17 | . 5 12 Peak Tracking Total 4 | . 4 4 Tactical Retreats 3 | . 1 2 Traps | -11 -10 -10 ------- Run | Yrd Mat Min Traps Triggered . | . . . Indirectly . | . . . Trap Hack Attempts . | . . . Triggered . | . . . Disarmed . | . . . Reprogrammed . | . . . Reused . | . . . Traps Extracted . | . . . Installed . | . . . Triggered . | . . . Machines | -11 -10 -10 ---------- Run | Yrd Mat Min Machines Disabled . | . . . Max in Single Turn . | . . . Machines Repaired . | . . . Machines Dismantled . | . . . Machines Sabotaged . | . . . Overloaded Fab Kills . | . . . Hacking | -11 -10 -10 --------- Run | Yrd Mat Min Machines Accessed . | . . . Terminals . | . . . Fabricators . | . . . Repair Stations . | . . . Recycling Units . | . . . Scanalyzers . | . . . Garrison Access . | . . . Total Hacks . | . . . Successful . | . . . Failed . | . . . Catastrophic . | . . . Database Lockouts . | . . . Manual . | . . . Terminals . | . . . Fabricators . | . . . Repair Stations . | . . . Recycling Units . | . . . Scanalyzers . | . . . Garrison Access . | . . . Terminal Hacks . | . . . Fabricator Hacks . | . . . Repair Station Hacks . | . . . Recycling Unit Hacks . | . . . Scanalyzer . | . . . Garrison Access Hacks . | . . . Unauthorized Hacks . | . . . Terminals . | . . . Fabricators . | . . . Repair Stations . | . . . Recycling Units . | . . . Scanalyzers . | . . . Garrison Access . | . . . Data Cores Recovered . | . . . Used . | . . . Hacking Detections . | . . . Full Trace Events . | . . . Feedback Events . | . . . Feedback Blocked . | . . . Robot Schematics Acquired . | . . . Robots Built . | . . . Authchips . | . . . Time . | . . . Total Robot Build Rating . | . . . Part Schematics Acquired . | . . . Parts Built . | . . . Authchips . | . . . Time . | . . . Total Part Build Rating . | . . . Parts Repaired . | . . . Time . | . . . Parts Recycled . | . . . Recycled Matter . | . . . Retrieved Matter . | . . . Retrieved Components . | . . . Parts Scanalyzed . | . . . Part Schematics Acquired . | . . . Parts Damaged . | . . . Bothacking | -11 -10 -10 ------------ Run | Yrd Mat Min Used RIF Installer . | . . . Robots Hacked . | . . . Non-combat . | . . . Combat . | . . . Robot Hacks Applied . | . . . Relay Couplers Released . | . . . Fabnet Peak Effective % . | . . . Robots Rewired . | . . . Allies Hacked . | . . . Hacks Repelled . | . . . Allies | -11 -10 -10 -------- Run | Yrd Mat Min Total Allies 1 | . . 1 Largest Group 1 | . . 1 Highest-Rated Group 31 | . . 31 Highest-Rated Ally 31 | . . 31 Total Orders . | . . . Ally Attacks . | . . . Total Damage . | . . . Kills . | . . . Allies Corrupted . | . . . Allies Melted . | . . . Intel | -11 -10 -10 ------- Run | Yrd Mat Min Robot Analysis Total . | . . . Derelict Logs Recovered . | . . . Drone Launches . | . . . Drone Recoveries . | . . . Exploration | -11 -10 -10 ------------- Run | Yrd Mat Min Turns Passed 486 | 50 216 220 Spaces Moved 336 | 42 150 144 Core 11 | 11 . . Treads . | . . . Legs 325 | 31 150 144 Wheels . | . . . Hover . | . . . Flight . | . . . Fastest Speed 50 | 50 120 120 Average Speed 117 | 101 120 120 Slowest Speed 120 | 120 120 120 Overloaded Moves . | . . . Propulsion Burnouts . | . . . Robots Hopped . | . . . Cave-ins Triggered . | . . . Exploration Rate (%) 19 | 3 31 25 Regions Visited 2 Branch Regions 1 Pre-discovered Areas . | . . . Known Exits Taken . | . . . Unknown Exits Taken 2 | 1 1 . Scrap Searched . | . . . Spaces Dug . | . . . Terrain Destroyed . | . . . Melee . | . . . Projectile . | . . . AOE . | . . . Terrain Rammed . | . . . Walls Destroyed . | . . . Machines Disabled . | . . . Actions | -11 -10 -10 --------- Run | Yrd Mat Min Total 381 | 49 167 165 Wait . | . . . Move 334 | 41 149 144 Hop . | . . . Pick Up 11 | 4 4 3 Fast Attach . | . . . Attach 7 | 4 2 1 Detach 1 | . 1 . Swap 1 | . . 1 Drop 1 | . 1 . Fire 26 | . 10 16 Melee . | . . . Ram . | . . . Kick . | . . . Crush . | . . . Escape Stasis . | . . . Rewire . | . . . Trap . | . . . Miscellaneous . | . . . Route ------- -11/Scrapyard -10/Materials (discovered 2 exits: [*Mat] / [*Min]) -10/Mines History --------- Turn | Location | Event 6 | -11/Scrapyard | Discovered new exit (range 15) 51 | -11/Scrapyard | Entered Materials 191 | -10/Materials | Discovered new exit (range 13) 199 | -10/Materials | Discovered new exit (range 14) 267 | -10/Materials | Entered Mines 294 | -10/Mines | Assembled infested the area 300 | -10/Mines | Build established: Mutant 372 | -10/Mines | Core integrity fell below 50% 419 | -10/Mines | Escorted by a lone wolf Derelict 486 | -10/Mines | Core integrity fell below 20% 487 | -10/Mines | Destroyed by D-53 Grenadier with Mini Grenade Launcher Last Messages --------------- Demolisher response squad. as-53694 destroyed. S-10 Pest destroyed. Acquired Lgt. Ion Engine. Acquired 18 matter. S-10 Pest destroyed. Acquired 5 matter. Acquired Lgt. Ion Engine. Acquired Lgt. Assault Rifle. Sml. Laser destroyed. S-10 Pest destroyed. Acquired 10 matter. Acquired 9 matter. A derelict emerges from the shadows: "Nice work disposing of those Unaware! I'm happy to return the favor and help see you out of these parts." Move into an ally to swap places with them. Aluminum Leg destroyed. Imp. Heat Sink destroyed. Map ----- +----------------------------------------------------+ | ??????????????????????????? ???????????????? | | ????????????????????????## ???????????????? | | ????????????????????????# ???????????????? | | ???????????????????????? #???????????????? | | ????????????????????????? #???????????????? | | ????????????????????????? #???????????????? | | ?????????????????????????? #???????????????? | | ??????????????????????????? #???????????????? | | ??????????????????????????? ##??????????????? | | ???????????????????????????? ##?###?????????? | | ????????????????????????????# ## #####?????? | | ????????????????????????????# ?????? | | ????????????????????????????# ???????? | | ?????????????????????????????# #?????????? | | ?????????????###??????#####???# """ #?????????? | | ????????????## #????## ##??# """ ##### #???? | | ????????????# ##### #### """ #??? | | ????????????# ## ??? | | ?????????????# ####????????? | | ???????????????# #### ## #???????????? | | ???????????????## #??# #?# ##???????????? | | ???????????????## d ###?# #??###????????????? | | ???????????????# ###d ## ### #?????????????????? | | ??????????????## ### ## #?????????????????? | | ???????####??## #?# #r#########?????????? | | ?????### #### ### @ % *=%#?????????? | | ????## ## ## ##########%#?????????? | | ????# # #???????#%#?????????? | | ????## # #???????#=#?????????? | | ?????#### ## ##???????# #?????????? | | ????????## ### #######g# ####??????#=#?????????? | | ?????????# ##?####?????# ######## ###???????? | | ?????????###???????????###### ## #???????? | | ????????????????????????????# ## #???????? | | ????????????????????????????# ## #???????? | | ????????????????????????????# ## """ """ ######### | | ????????????????????????????# """ """ | | ????????????????????????????#### """ """ ######### | | ???????????????????????????????# #???????? | | ???????????????????????????????###########???????? | | ?????????????????????????????????????????????????? | | ?????????????????????????????????????????????????? | | ?????????????????????????????????????????????????? | | | | | | | | | | | | | | | +----------------------------------------------------+ Best States ------------- Heat Dissipation 39 Energy Generation 10 Energy Capacity 125 Matter Stores 300 Matter Capacity 300 Sight Range 16 Terrain Scan Density 10 Evasion (%) 55 Item Schematics ----------------- None Robot Schematics ------------------ None Fabricated ------------ Nothing Alien Tech Used ----------------- None Achievements -------------- None Challenges ------------ None Game ------ Seed MultinovaOmegaBay Manual? 0 Play Time 00:04:54 Cumulative 16.5 hours Start 2024.02.29 @ 07:37:28 End 2024.02.29 @ 07:44:19 Sessions 1 Manual Loads 0 Difficulty Rogue Special Mode None Game No. 37 Rogue 24 Adventurer 13 Explorer 0 Win Type - Total 0 Types 0/0/0/0/0/0/0/0/0 Lore% 14 Gallery% 19 Achievement% 15 Wizard Run 0 Options --------- Layout 1 ASCII 0 Keyboard 0 Movement Mouse Keybinds 0 Fullscreen 1 Font 24/Smallcaps Map View 50x35 Zoom Use 0% Tactical HUD 0 Map Filters NONE Filters NONE Steam 1 RUN: e4cee4ce-0a6f-4371-b788-a55f0fa53b78